{"text_format":"1","workbook":"xlsx","n_sheets":3,"sheets":["источники","январь","февраль"],"not_rendered":{"charts":0,"images":0,"macros":1,"external_links":0,"defined_names":0,"comments":0,"pivot_tables":0},"unopened":[],"bounds":{"document_bytes":16777216,"sheet_cells":100000,"rows_first":2000,"rows_last":500,"rows_between":2000,"halvings":0,"cell_chars":16384,"cell_head_chars":4096},"cells_cut":0,"cells_raw":0,"read":"whole","date_system":"1900"}

{"sheet":"источники","index":0,"n_rows":8,"n_cols":3,"rows_kept":8,"cut":false,"hidden":false,"merged":[[1,1,1,2]]}
[]
[null,"источники"]
[null,"наименование","ед. изм."]
[null,"апельсин ","кг"]
[null,"банан","т"]
[null,"виноград","кг"]
[null,"кукуруза","т"]
[null,"огурец","т"]

{"sheet":"январь","index":1,"n_rows":12,"n_cols":8,"rows_kept":12,"cut":false,"hidden":false,"merged":[[2,5,2,7]]}
[]
[]
[null,null,null,null,null,"расход"]
[null,"№","наименование материала","ед. изм.","итого расход","дата","дата","дата"]
[null,null,{"$f":"источники!B4","v":"апельсин "},{"$f":"источники!C4","v":"кг"},{"$f":"SUM(F5:H5)","v":10},10]
[null,null,{"$f":"источники!B5","v":"банан"},{"$f":"источники!C5","v":"т"},0]
[null,null,{"$f":"источники!B6","v":"виноград"},{"$f":"источники!C6","v":"кг"},30,null,30]
[null,null,{"$f":"источники!B7","v":"кукуруза"},{"$f":"источники!C7","v":"т"},0]
[null,null,{"$f":"источники!B8","v":"огурец"},{"$f":"источники!C8","v":"т"},35,20,null,15]
[null,null,{"$f":"источники!B9","v":0},{"$f":"источники!C9","v":0},0]
[null,null,{"$f":"источники!B10","v":0},{"$f":"источники!C10","v":0},0]
[null,null,{"$f":"источники!B11","v":0},{"$f":"источники!C11","v":0},0]

{"sheet":"февраль","index":2,"n_rows":12,"n_cols":8,"rows_kept":12,"cut":false,"hidden":false,"merged":[[2,5,2,7]]}
[]
[]
[null,null,null,null,null,"расход"]
[null,"№","наименование материала","ед. изм.","итого расход","дата","дата","дата"]
[null,null,{"$f":"источники!B4","v":"апельсин "},{"$f":"источники!C4","v":"кг"},{"$f":"SUM(F5:H5)","v":30},30]
[null,null,{"$f":"источники!B5","v":"банан"},{"$f":"источники!C5","v":"т"},{"$f":"SUM(F6:H6)","v":20},20]
[null,null,{"$f":"источники!B6","v":"виноград"},{"$f":"источники!C6","v":"кг"},5,null,null,5]
[null,null,{"$f":"источники!B7","v":"кукуруза"},{"$f":"источники!C7","v":"т"},0]
[null,null,{"$f":"источники!B8","v":"огурец"},{"$f":"источники!C8","v":"т"},10,null,10]
[null,null,{"$f":"источники!B9","v":0},{"$f":"источники!C9","v":0},0]
[null,null,{"$f":"источники!B10","v":0},{"$f":"источники!C10","v":0},0]
[null,null,{"$f":"источники!B11","v":0},{"$f":"источники!C11","v":0},0]